Workbook

Sheet Setup
A1: ΤΟΥΡΝΟΥΑ 16άρι ταμπλό | D1: Θέσεις | E1: seed
D2: 3-4 | E2: =VALUE(LEFT(F2,1)) -> 3 | F2: 3 4
A3: Διοργανωτής: | B3: Α΄ΕΝΩΣΗ | E3: =VALUE(RIGHT(F2,1)) -> 4
A4: Τίτλος Τουρνουά: | B4: 1ο Ε3
A6: Έδρα αγώνων:
A7: Κατηγορίες: | B7: Α14 | D7: 0 0 0 0 0 0 1 2 3 4 6 5 8 7 10 9
A8: Έναρξη: | B8: 15 | D8: 1 2 3 4
A9: Λήξη: | B9: 16 ΜΑΡ 2014 | D9: 0 0 0 0 0 0 0 0 0 0 0 0 0 0 0 0 0 0 0 0 0 0 0 0 0 0 0 0 0 0 0 0 0 0 0 0 0 0 0 0
A10: Επιδιατητής: | B10: ΠΕΤΡΙΔΗΣ ΜΑΝΟΣ
A11: Τηλέφωνο επιδ: | D11: 0 | E11: seed | F11: space pos | G11: Index | H11: Value
D12: =IF(E12="-","-",IF(E12>0,D11+1,0)) -> 0 | E12: =IF(F12>0,VALUE(MID($D$7,1,F12-1)),"-") -> 0 | F12: =IF(LEN($D$7)>1,FIND(" ",$D$7,1),0) -> 2 | G12: 0 | H12: 0
D13: =IF(E13="-","-",IF(E13>0,D12+1,0)) -> 0 | E13: =IF(F13>0,VALUE(MID($D$7,F12+1,F13-F12-1)),"-") -> 0 | F13: =IF(AND(F12>0,LEN($D$7)>F12+1),FIND(" ",$D$7,F12+1),0) -> 4 | G13: 0 | H13: 0
D14: =IF(E14="-","-",IF(E14>0,D13+1,0)) -> 0 | E14: 0 | F14: 6 | G14: 0 | H14: 0
D15: =IF(E15="-","-",IF(E15>0,D14+1,0)) -> 0 | E15: =IF(F15>0,VALUE(MID($D$7,F14+1,F15-F14-1)),"-") -> 0 | F15: 8 | G15: 0 | H15: 0
D16: 0 | E16: =IF(F16>0,VALUE(MID($D$7,F15+1,F16-F15-1)),"-") -> 0 | F16: 10 | G16: 0 | H16: 0
B17: ="("&COUNTBLANK(DrawPrep!D3:D18)&")" -> (6) | D17: 0 | E17: =IF(F17>0,VALUE(MID($D$7,F16+1,F17-F16-1)),"-") -> 0 | F17: 12 | G17: 0 | H17: 0
A18: Πλήθος bye (0-7): | B18: =COUNTBLANK(DrawPrep!D3:D18) -> 6 | D18: 1 | E18: 1 | F18: 14 | G18: 1 | H18: 1
A19: Αριθμός θέσεων seeded: | B19: 4 | D19: 2 | E19: 2 | F19: 16 | G19: 2 | H19: 2
D20: 3 | E20: 3 | F20: 18 | G20: 3 | H20: 3
A21: All - Seeded - NoSeeded: | B21: =CONCATENATE(16-$B$18," - ",$B$19," - ",16-$B$19-$B$18) -> 10 - 4 - 6 | D21: 4 | E21: 4 | F21: 20 | G21: 4 | H21: 4
D22: 5 | E22: 6 | F22: 22 | G22: 5 | H22: 6
D23: 6 | E23: 5 | F23: 24 | G23: 6 | H23: 5
A24: md (# για off) | B24: ok | D24: 7 | E24: 8 | F24: 26 | G24: 7 | H24: 8
D25: 8 | E25: 7 | F25: 28 | G25: 8 | H25: 7
D26: 9 | E26: 10 | F26: 31 | G26: 9 | H26: 10
A27: =RandUniq(3,4,2) ->  | D27: 10 | E27: 9 | F27: 33 | G27: 10 | H27: 9
A29: =CONCATENATE(LEFT(D9,$B$18*2),LEFT(D8,$B$19*2),RandUniq($B$19+1,16-$B$18,16-$B$19-$B$18)," ") -> 

Sheet DrawPrep
A1: =Setup!$B$3 & ", " & Setup!$B$4 & ", " & Setup!$B$6 & ", " & Setup!$B$8 & "-" & Setup!$B$9 -> Α΄ΕΝΩΣΗ, 1ο Ε3, , 15-16 ΜΑΡ 2014 | H1: =Setup!$B$7 -> Α14
A2: α/α | B2: από | C2: Α.Μ. | D2: Ονοματεπώνυμο | E2: Σύλλογος | F2: βαθμοί | G2: Τηλέφωνο | H2: Υπογραφή | I2: SortPts | J2: Rnd
A3: 1 | C3: 27871 | D3: ΠΟΥΛΑΚΗΣ ΜΙΛΤΙΑΔΗΣ | E3: ΑΛΕΞΑΝΔΡΟΣ ΚΑΒΑΛΑΣ | F3: 81 | I3: =IF(D3>" ",F3+J3,0) -> 81.00345937 | J3: 0.003459368942
A4: 2 | C4: 29276 | D4: ΠΑΠΟΥΛΙΑΣ ΣΩΚΡΑΤΗΣ | E4: Σ.Α.ΣΕΡΡΩΝ | F4: 41 | I4: 41.0032273 | J4: 0.003227296925
A5: 3 | C5: 30946 | D5: ΚΟΥΡΤΙΔΗΣ ΙΣΑΑΚ | E5: Α.Ο.Α.ΠΡΩΤΑΘΛΗΤΩΝ | F5: 38 | I5: 38.00201778 | J5: 0.002017782856
A6: 4 | C6: 33339 | D6: ΠΑΣΧΑΛΙΔΗΣ ΜΑΡΙΟΣ | E6: ΤΙΤΑΝΕΣ-ΝΕΑΣ ΠΕΡΑΜΟΥ | F6: 14 | I6: 14.00437636 | J6: 0.00437636477
A7: 5 | C7: 29217 | D7: ΠΛΑΤΗΣ ΚΩΝΣΤΑΝΤΙΝΟΣ | E7: Ο.Α.ΞΑΝΘΗΣ | F7: 9 | I7: 9.00440104 | J7: 0.004401040472
A8: 6 | C8: 30434 | D8: ΚΑΣΑΠΗΣ ΣΤΥΛΙΑΝΟΣ | E8: Ο.Α.ΞΑΝΘΗΣ | F8: 9 | I8: 9.004399338 | J8: 0.004399337681
A9: 7 | C9: 29218 | D9: ΠΛΑΤΗΣ ΕΛΕΥΘΕΡΙΟΣ | E9: Ο.Α.ΞΑΝΘΗΣ | F9: 9 | I9: 9.002834771 | J9: 0.00283477146
A10: 8 | C10: 33290 | D10: ΘΟΥΛΙΩΤΗΣ ΜΙΧΑΛΗΣ | E10: Σ.Α.ΣΕΡΡΩΝ | F10: 8 | I10: 8.00025528 | J10: 0.0002552797346
A11: 9 | C11: 32948 | D11: ΠΡΑΤΙΚΑΚΗΣ ΜΑΝΟΣ | E11: Ο.Α.ΞΑΝΘΗΣ | F11: 3 | I11: 3.002038646 | J11: 0.002038645917
A12: 10 | C12: 35881 | D12: ΛΥΔΑΚΑΚΗΣ ΔΗΜΗΤΡΙΟΣ | E12: Α.Ο.ΧΡΥΣΟΥΠΟΛΗΣ | F12: 0 | I12: 0.0007016728524 | J12: 0.0007016728524
A13: 11 | I13: 0 | J13: 0.002713133402
A14: 12 | I14: 0 | J14: 0.0009643529808
A15: 13 | I15: 0 | J15: 0.003319855454
A16: 14 | I16: 0 | J16: 0.002049731372
A17: 15 | I17: 0 | J17: 0.0005776577619
A18: 16 | I18: 0 | J18: 0.001634803165
B20: Walk-over | E20: med
B21: α/α | C21: Α.Μ. | D21: Ονοματεπώνυμο | E21: Ν ή Ο | H21: =Setup!$B$10 -> ΠΕΤΡΙΔΗΣ ΜΑΝΟΣ
B22: 1 | C22: 29824 | D22: ΧΑΤΖΗΛΙΑΔΗΣ ΓΕΩΡΓΙΟΣ | E22: Ο
B23: 2
B24: 3
B25: 4
B26: 5

Sheet Draw
A1: =Setup!B3 & ", " & Setup!B4 & ", " & Setup!B6 & ", " & Setup!B8 & "-" & Setup!B9 -> Α΄ΕΝΩΣΗ, 1ο Ε3, , 15-16 ΜΑΡ 2014 | R1: =Setup!B7 -> Α14
B2: =Setup!$B$18 -> 6
J3: 16 | N3: 8 | P3: 4 | R3: 2
A4: α/α | C4: ByeOrder | D4: ByeSum | E4: ByeCnt | F4: από | G4: seed | H4: Pts | I4: Α.Μ. | J4: Ονοματεπώνυμο | K4: επώνυμο | L4: Σύλλογος
A5: 1 | B5: 1 | E5: 0 | F5: =IF(NOT($G5="-"),VLOOKUP($G5,DrawPrep!$A$3:$G$18,2,FALSE),"") -> 0 | G5: =VLOOKUP($B5,Setup!$G$12:$H$27,2,FALSE) -> 1 | H5: =IF($G5>0,VLOOKUP($G5,DrawPrep!$A$3:$G$18,6,FALSE),0) -> 81 | I5: =IF(Setup!$B$24="#",0,IF($G5>0,VLOOKUP($G5,DrawPrep!$A$3:$G$18,3,FALSE),0)) -> 27871 | J5: =IF($I5>0,VLOOKUP($I5,DrawPrep!$C$3:$G$18,2,FALSE),"bye") -> ΠΟΥΛΑΚΗΣ ΜΙΛΤΙΑΔΗΣ | K5: =IF($I5>0,LEFT(J5,FIND(" ",J5)-1),"") -> ΠΟΥΛΑΚΗΣ | L5: =IF($I5>0,VLOOKUP($I5,DrawPrep!$C$3:$G$18,3,FALSE),"") -> ΑΛΕΞΑΝΔΡΟΣ ΚΑΒΑΛΑΣ | M5: 1 | N5: =UPPER(IF($A$2="R",IF(OR(M5=1,M5="a"),I5,IF(OR(M5=2,M5="b"),I6,"")),IF(OR(M5=1,M5="1"),K5,IF(OR(M5=2,M5="b"),K6,"")))) -> ΠΟΥΛΑΚΗΣ
A6: 2 | B6: =1-D6+4 -> 4 | C6: 1 | D6: =E6 -> 1 | E6: =IF($B$2>=C6,1,0) -> 1 | F6: =IF(NOT($G6="-"),VLOOKUP($G6,DrawPrep!$A$3:$G$18,2,FALSE),"") ->  | G6: =IF($B$2>=C6,"-",VLOOKUP($B6,Setup!$G$12:$H$27,2,FALSE)) -> - | H6: =IF(NOT($G6="-"),VLOOKUP($G6,DrawPrep!$A$3:$G$18,6,FALSE),0) -> 0 | I6: =IF(Setup!$B$24="#",0,IF(NOT($G6="-"),VLOOKUP($G6,DrawPrep!$A$3:$G$18,3,FALSE),0)) -> 0 | J6: =IF($I6>0,VLOOKUP($I6,DrawPrep!$C$3:$G$18,2,FALSE),"bye") -> bye | K6: =IF($I6>0,LEFT(J6,FIND(" ",J6)-1),"") ->  | L6: =IF($I6>0,VLOOKUP($I6,DrawPrep!$C$3:$G$18,3,FALSE),"") ->  | O6: 1 | P6: =UPPER(IF($A$2="R",IF(OR(O6=1,O6="a"),N5,IF(OR(O6=2,O6="b"),N7,"")),IF(OR(O6=1,O6="a"),N5,IF(OR(O6=2,O6="b"),N7,"")))) -> ΠΟΥΛΑΚΗΣ
A7: 3 | B7: =2-D7+4 -> 5 | D7: =D6+E7 -> 1 | E7: 0 | F7: =IF(NOT($G7="-"),VLOOKUP($G7,DrawPrep!$A$3:$G$18,2,FALSE),"") -> 0 | G7: =VLOOKUP($B7,Setup!$G$12:$H$27,2,FALSE) -> 6 | H7: =IF($G7>0,VLOOKUP($G7,DrawPrep!$A$3:$G$18,6,FALSE),0) -> 9 | I7: =IF(Setup!$B$24="#",0,IF($G7>0,VLOOKUP($G7,DrawPrep!$A$3:$G$18,3,FALSE),0)) -> 30434 | J7: =IF($I7>0,VLOOKUP($I7,DrawPrep!$C$3:$G$18,2,FALSE),"bye") -> ΚΑΣΑΠΗΣ ΣΤΥΛΙΑΝΟΣ | K7: ΚΑΣΑΠΗΣ | L7: =IF($I7>0,VLOOKUP($I7,DrawPrep!$C$3:$G$18,3,FALSE),"") -> Ο.Α.ΞΑΝΘΗΣ | M7: 1 | N7: =UPPER(IF($A$2="R",IF(OR(M7=1,M7="a"),I7,IF(OR(M7=2,M7="b"),I8,"")),IF(OR(M7=1,M7="a"),K7,IF(OR(M7=2,M7="b"),K8,"")))) -> ΚΑΣΑΠΗΣ | P7: 40 40
A8: 4 | B8: =3-D8+4 -> 6 | C8: 7 | D8: 1 | E8: =IF($B$2>=C8,1,0) -> 0 | F8: =IF(NOT($G8="-"),VLOOKUP($G8,DrawPrep!$A$3:$G$18,2,FALSE),"") -> 0 | G8: =IF($B$2>=C8,"-",VLOOKUP($B8,Setup!$G$12:$H$27,2,FALSE)) -> 5 | H8: =IF(NOT($G8="-"),VLOOKUP($G8,DrawPrep!$A$3:$G$18,6,FALSE),0) -> 9 | I8: =IF(Setup!$B$24="#",0,IF(NOT($G8="-"),VLOOKUP($G8,DrawPrep!$A$3:$G$18,3,FALSE),0)) -> 29217 | J8: =IF($I8>0,VLOOKUP($I8,DrawPrep!$C$3:$G$18,2,FALSE),"bye") -> ΠΛΑΤΗΣ ΚΩΝΣΤΑΝΤΙΝΟΣ | K8: ΠΛΑΤΗΣ | L8: =IF($I8>0,VLOOKUP($I8,DrawPrep!$C$3:$G$18,3,FALSE),"") -> Ο.Α.ΞΑΝΘΗΣ | N8: 42 41 | Q8: 1 | R8: =UPPER(IF($A$2="R",IF(OR(Q8=1,Q8="a"),P6,IF(OR(Q8=2,Q8="b"),P10,"")),IF(OR(Q8=1,Q8="a"),P6,IF(OR(Q8=2,Q8="b"),P10,"")))) -> ΠΟΥΛΑΚΗΣ
A9: 5 | B9: =VALUE(Setup!E2) -> 3 | D9: 1 | E9: 0 | F9: =IF(NOT($G9="-"),VLOOKUP($G9,DrawPrep!$A$3:$G$18,2,FALSE),"") -> 0 | G9: =VLOOKUP($B9,Setup!$G$12:$H$27,2,FALSE) -> 3 | H9: =IF($G9>0,VLOOKUP($G9,DrawPrep!$A$3:$G$18,6,FALSE),0) -> 38 | I9: =IF(Setup!$B$24="#",0,IF($G9>0,VLOOKUP($G9,DrawPrep!$A$3:$G$18,3,FALSE),0)) -> 30946 | J9: =IF($I9>0,VLOOKUP($I9,DrawPrep!$C$3:$G$18,2,FALSE),"bye") -> ΚΟΥΡΤΙΔΗΣ ΙΣΑΑΚ | K9: ΚΟΥΡΤΙΔΗΣ | L9: =IF($I9>0,VLOOKUP($I9,DrawPrep!$C$3:$G$18,3,FALSE),"") -> Α.Ο.Α.ΠΡΩΤΑΘΛΗΤΩΝ | M9: 1 | N9: =UPPER(IF($A$2="R",IF(OR(M9=1,M9="a"),I9,IF(OR(M9=2,M9="b"),I10,"")),IF(OR(M9=1,M9="a"),K9,IF(OR(M9=2,M9="b"),K10,"")))) -> ΚΟΥΡΤΙΔΗΣ | R9: 62 62
A10: 6 | B10: =4-D10+4 -> 6 | C10: =IF(Setup!E2=3,3,4) -> 3 | D10: 2 | E10: =IF($B$2>=C10,1,0) -> 1 | F10: =IF(NOT($G10="-"),VLOOKUP($G10,DrawPrep!$A$3:$G$18,2,FALSE),"") ->  | G10: =IF($B$2>=C10,"-",VLOOKUP($B10,Setup!$G$12:$H$27,2,FALSE)) -> - | H10: =IF(NOT($G10="-"),VLOOKUP($G10,DrawPrep!$A$3:$G$18,6,FALSE),0) -> 0 | I10: =IF(Setup!$B$24="#",0,IF(NOT($G10="-"),VLOOKUP($G10,DrawPrep!$A$3:$G$18,3,FALSE),0)) -> 0 | J10: =IF($I10>0,VLOOKUP($I10,DrawPrep!$C$3:$G$18,2,FALSE),"bye") -> bye | L10: =IF($I10>0,VLOOKUP($I10,DrawPrep!$C$3:$G$18,3,FALSE),"") ->  | O10: 1 | P10: =UPPER(IF($A$2="R",IF(OR(O10=1,O10="a"),N9,IF(OR(O10=2,O10="b"),N11,"")),IF(OR(O10=1,O10="a"),N9,IF(OR(O10=2,O10="b"),N11,"")))) -> ΚΟΥΡΤΙΔΗΣ
A11: 7 | B11: =5-D11+4 -> 6 | C11: 5 | D11: 3 | E11: =IF($B$2>=C11,1,0) -> 1 | F11: =IF(NOT($G11="-"),VLOOKUP($G11,DrawPrep!$A$3:$G$18,2,FALSE),"") ->  | G11: =IF($B$2>=C11,"-",VLOOKUP($B11,Setup!$G$12:$H$27,2,FALSE)) -> - | H11: =IF(NOT($G11="-"),VLOOKUP($G11,DrawPrep!$A$3:$G$18,6,FALSE),0) -> 0 | I11: =IF(Setup!$B$24="#",0,IF(NOT($G11="-"),VLOOKUP($G11,DrawPrep!$A$3:$G$18,3,FALSE),0)) -> 0 | J11: =IF($I11>0,VLOOKUP($I11,DrawPrep!$C$3:$G$18,2,FALSE),"bye") -> bye | L11: =IF($I11>0,VLOOKUP($I11,DrawPrep!$C$3:$G$18,3,FALSE),"") ->  | M11: 2 | N11: =UPPER(IF($A$2="R",IF(OR(M11=1,M11="a"),I11,IF(OR(M11=2,M11="b"),I12,"")),IF(OR(M11=1,M11="a"),K11,IF(OR(M11=2,M11="b"),K12,"")))) -> ΘΟΥΛΙΩΤΗΣ | P11: 41 42
A12: 8 | B12: =6-D12+4 -> 7 | D12: 3 | E12: 0 | F12: =IF(NOT($G12="-"),VLOOKUP($G12,DrawPrep!$A$3:$G$18,2,FALSE),"") -> 0 | G12: =VLOOKUP($B12,Setup!$G$12:$H$27,2,FALSE) -> 8 | H12: =IF($G12>0,VLOOKUP($G12,DrawPrep!$A$3:$G$18,6,FALSE),0) -> 8 | I12: =IF(Setup!$B$24="#",0,IF($G12>0,VLOOKUP($G12,DrawPrep!$A$3:$G$18,3,FALSE),0)) -> 33290 | J12: =IF($I12>0,VLOOKUP($I12,DrawPrep!$C$3:$G$18,2,FALSE),"bye") -> ΘΟΥΛΙΩΤΗΣ ΜΙΧΑΛΗΣ | K12: ΘΟΥΛΙΩΤΗΣ | L12: =IF($I12>0,VLOOKUP($I12,DrawPrep!$C$3:$G$18,3,FALSE),"") -> Σ.Α.ΣΕΡΡΩΝ | Q12: 1 | R12: =UPPER(IF($A$2="R",IF(OR(Q12=1,Q12="a"),R8,IF(OR(Q12=2,Q12="b"),R16,"")),IF(OR(Q12=1,Q12="a"),R8,IF(OR(Q12=2,Q12="b"),R16,"")))) -> ΠΟΥΛΑΚΗΣ
A13: 9 | B13: =VALUE(Setup!E3) -> 4 | D13: 3 | E13: 0 | F13: =IF(NOT($G13="-"),VLOOKUP($G13,DrawPrep!$A$3:$G$18,2,FALSE),"") -> 0 | G13: =VLOOKUP($B13,Setup!$G$12:$H$27,2,FALSE) -> 4 | H13: =IF($G13>0,VLOOKUP($G13,DrawPrep!$A$3:$G$18,6,FALSE),0) -> 14 | I13: =IF(Setup!$B$24="#",0,IF($G13>0,VLOOKUP($G13,DrawPrep!$A$3:$G$18,3,FALSE),0)) -> 33339 | J13: =IF($I13>0,VLOOKUP($I13,DrawPrep!$C$3:$G$18,2,FALSE),"bye") -> ΠΑΣΧΑΛΙΔΗΣ ΜΑΡΙΟΣ | K13: ΠΑΣΧΑΛΙΔΗΣ | L13: =IF($I13>0,VLOOKUP($I13,DrawPrep!$C$3:$G$18,3,FALSE),"") -> ΤΙΤΑΝΕΣ-ΝΕΑΣ ΠΕΡΑΜΟΥ | M13: 1 | N13: =UPPER(IF($A$2="R",IF(OR(M13=1,M13="a"),I13,IF(OR(M13=2,M13="b"),I14,"")),IF(OR(M13=1,M13="a"),K13,IF(OR(M13=2,M13="b"),K14,"")))) -> ΠΑΣΧΑΛΙΔΗΣ | R13: 60 63
A14: 10 | B14: =7-D14+4 -> 7 | C14: =IF(Setup!E2=3,4,3) -> 4 | D14: 4 | E14: =IF($B$2>=C14,1,0) -> 1 | F14: =IF(NOT($G14="-"),VLOOKUP($G14,DrawPrep!$A$3:$G$18,2,FALSE),"") ->  | G14: =IF($B$2>=C14,"-",VLOOKUP($B14,Setup!$G$12:$H$27,2,FALSE)) -> - | H14: =IF(NOT($G14="-"),VLOOKUP($G14,DrawPrep!$A$3:$G$18,6,FALSE),0) -> 0 | I14: =IF(Setup!$B$24="#",0,IF(NOT($G14="-"),VLOOKUP($G14,DrawPrep!$A$3:$G$18,3,FALSE),0)) -> 0 | J14: =IF($I14>0,VLOOKUP($I14,DrawPrep!$C$3:$G$18,2,FALSE),"bye") -> bye | L14: =IF($I14>0,VLOOKUP($I14,DrawPrep!$C$3:$G$18,3,FALSE),"") ->  | O14: 1 | P14: =UPPER(IF($A$2="R",IF(OR(O14=1,O14="a"),N13,IF(OR(O14=2,O14="b"),N15,"")),IF(OR(O14=1,O14="a"),N13,IF(OR(O14=2,O14="b"),N15,"")))) -> ΠΑΣΧΑΛΙΔΗΣ
A15: 11 | B15: =8-D15+4 -> 8 | D15: 4 | E15: 0 | F15: =IF(NOT($G15="-"),VLOOKUP($G15,DrawPrep!$A$3:$G$18,2,FALSE),"") -> 0 | G15: =VLOOKUP($B15,Setup!$G$12:$H$27,2,FALSE) -> 7 | H15: =IF($G15>0,VLOOKUP($G15,DrawPrep!$A$3:$G$18,6,FALSE),0) -> 9 | I15: =IF(Setup!$B$24="#",0,IF($G15>0,VLOOKUP($G15,DrawPrep!$A$3:$G$18,3,FALSE),0)) -> 29218 | J15: =IF($I15>0,VLOOKUP($I15,DrawPrep!$C$3:$G$18,2,FALSE),"bye") -> ΠΛΑΤΗΣ ΕΛΕΥΘΕΡΙΟΣ | K15: ΠΛΑΤΗΣ | L15: =IF($I15>0,VLOOKUP($I15,DrawPrep!$C$3:$G$18,3,FALSE),"") -> Ο.Α.ΞΑΝΘΗΣ | M15: 1 | N15: =UPPER(IF($A$2="R",IF(OR(M15=1,M15="a"),I15,IF(OR(M15=2,M15="b"),I16,"")),IF(OR(M15=1,M15="a"),K15,IF(OR(M15=2,M15="b"),K16,"")))) -> ΠΛΑΤΗΣ | P15: 41 53
A16: 12 | B16: =9-D16+4 -> 8 | C16: 6 | D16: 5 | E16: =IF($B$2>=C16,1,0) -> 1 | F16: =IF(NOT($G16="-"),VLOOKUP($G16,DrawPrep!$A$3:$G$18,2,FALSE),"") ->  | G16: =IF($B$2>=C16,"-",VLOOKUP($B16,Setup!$G$12:$H$27,2,FALSE)) -> - | H16: =IF(NOT($G16="-"),VLOOKUP($G16,DrawPrep!$A$3:$G$18,6,FALSE),0) -> 0 | I16: =IF(Setup!$B$24="#",0,IF(NOT($G16="-"),VLOOKUP($G16,DrawPrep!$A$3:$G$18,3,FALSE),0)) -> 0 | J16: =IF($I16>0,VLOOKUP($I16,DrawPrep!$C$3:$G$18,2,FALSE),"bye") -> bye | L16: =IF($I16>0,VLOOKUP($I16,DrawPrep!$C$3:$G$18,3,FALSE),"") ->  | Q16: 2 | R16: =UPPER(IF($A$2="R",IF(OR(Q16=1,Q16="a"),P14,IF(OR(Q16=2,Q16="b"),P18,"")),IF(OR(Q16=1,Q16="a"),P14,IF(OR(Q16=2,Q16="b"),P18,"")))) -> ΠΑΠΟΥΛΙΑΣ
A17: 13 | B17: =10-D17+4 -> 9 | D17: 5 | E17: 0 | F17: =IF(NOT($G17="-"),VLOOKUP($G17,DrawPrep!$A$3:$G$18,2,FALSE),"") -> 0 | G17: =VLOOKUP($B17,Setup!$G$12:$H$27,2,FALSE) -> 10 | H17: =IF($G17>0,VLOOKUP($G17,DrawPrep!$A$3:$G$18,6,FALSE),0) -> 0 | I17: =IF(Setup!$B$24="#",0,IF($G17>0,VLOOKUP($G17,DrawPrep!$A$3:$G$18,3,FALSE),0)) -> 35881 | J17: =IF($I17>0,VLOOKUP($I17,DrawPrep!$C$3:$G$18,2,FALSE),"bye") -> ΛΥΔΑΚΑΚΗΣ ΔΗΜΗΤΡΙΟΣ | K17: ΛΥΔΑΚΑΚΗΣ | L17: =IF($I17>0,VLOOKUP($I17,DrawPrep!$C$3:$G$18,3,FALSE),"") -> Α.Ο.ΧΡΥΣΟΥΠΟΛΗΣ | M17: 2 | N17: =UPPER(IF($A$2="R",IF(OR(M17=1,M17="a"),I17,IF(OR(M17=2,M17="b"),I18,"")),IF(OR(M17=1,M17="a"),K17,IF(OR(M17=2,M17="b"),K18,"")))) -> ΠΡΑΤΙΚΑΚΗΣ | R17: 62 64
A18: 14 | B18: =11-D18+4 -> 10 | C18: 8 | D18: 5 | E18: =IF($B$2>=C18,1,0) -> 0 | F18: =IF(NOT($G18="-"),VLOOKUP($G18,DrawPrep!$A$3:$G$18,2,FALSE),"") -> 0 | G18: =IF($B$2>=C18,"-",VLOOKUP($B18,Setup!$G$12:$H$27,2,FALSE)) -> 9 | H18: =IF(NOT($G18="-"),VLOOKUP($G18,DrawPrep!$A$3:$G$18,6,FALSE),0) -> 3 | I18: =IF(Setup!$B$24="#",0,IF(NOT($G18="-"),VLOOKUP($G18,DrawPrep!$A$3:$G$18,3,FALSE),0)) -> 32948 | J18: =IF($I18>0,VLOOKUP($I18,DrawPrep!$C$3:$G$18,2,FALSE),"bye") -> ΠΡΑΤΙΚΑΚΗΣ ΜΑΝΟΣ | K18: ΠΡΑΤΙΚΑΚΗΣ | L18: =IF($I18>0,VLOOKUP($I18,DrawPrep!$C$3:$G$18,3,FALSE),"") -> Ο.Α.ΞΑΝΘΗΣ | N18: 40 42 | O18: 2 | P18: =UPPER(IF($A$2="R",IF(OR(O18=1,O18="a"),N17,IF(OR(O18=2,O18="b"),N19,"")),IF(OR(O18=1,O18="a"),N17,IF(OR(O18=2,O18="b"),N19,"")))) -> ΠΑΠΟΥΛΙΑΣ
A19: 15 | B19: =12-D19+4 -> 10 | C19: 2 | D19: 6 | E19: =IF($B$2>=C19,1,0) -> 1 | F19: =IF(NOT($G19="-"),VLOOKUP($G19,DrawPrep!$A$3:$G$18,2,FALSE),"") ->  | G19: =IF($B$2>=C19,"-",VLOOKUP($B19,Setup!$G$12:$H$27,2,FALSE)) -> - | H19: =IF(NOT($G19="-"),VLOOKUP($G19,DrawPrep!$A$3:$G$18,6,FALSE),0) -> 0 | I19: =IF(Setup!$B$24="#",0,IF(NOT($G19="-"),VLOOKUP($G19,DrawPrep!$A$3:$G$18,3,FALSE),0)) -> 0 | J19: =IF($I19>0,VLOOKUP($I19,DrawPrep!$C$3:$G$18,2,FALSE),"bye") -> bye | L19: =IF($I19>0,VLOOKUP($I19,DrawPrep!$C$3:$G$18,3,FALSE),"") ->  | M19: 2 | N19: =UPPER(IF($A$2="R",IF(OR(M19=1,M19="a"),I19,IF(OR(M19=2,M19="b"),I20,"")),IF(OR(M19=1,M19="a"),K19,IF(OR(M19=2,M19="b"),K20,"")))) -> ΠΑΠΟΥΛΙΑΣ | P19: 42 54 (7)
A20: 16 | B20: 2 | D20: 6 | E20: 0 | F20: =IF(NOT($G20="-"),VLOOKUP($G20,DrawPrep!$A$3:$G$18,2,FALSE),"") -> 0 | G20: =VLOOKUP($B20,Setup!$G$12:$H$27,2,FALSE) -> 2 | H20: =IF($G20>0,VLOOKUP($G20,DrawPrep!$A$3:$G$18,6,FALSE),0) -> 41 | I20: =IF(Setup!$B$24="#",0,IF($G20>0,VLOOKUP($G20,DrawPrep!$A$3:$G$18,3,FALSE),0)) -> 29276 | J20: =IF($I20>0,VLOOKUP($I20,DrawPrep!$C$3:$G$18,2,FALSE),"bye") -> ΠΑΠΟΥΛΙΑΣ ΣΩΚΡΑΤΗΣ | K20: ΠΑΠΟΥΛΙΑΣ | L20: =IF($I20>0,VLOOKUP($I20,DrawPrep!$C$3:$G$18,3,FALSE),"") -> Σ.Α.ΣΕΡΡΩΝ
J24: seeded players
J25: ="1. " & IF(Setup!B19>0,LEFT(DrawPrep!D3,FIND(" ",DrawPrep!D3)+1),"") -> 1. ΠΟΥΛΑΚΗΣ
J26: ="2. " & IF(Setup!B19>1,LEFT(DrawPrep!D4,FIND(" ",DrawPrep!D4)+1),"") -> 2. ΠΑΠΟΥΛΙΑΣ | R26: επιδιαιτητής
J27: ="3. " & IF(Setup!B19>2,LEFT(DrawPrep!D5,FIND(" ",DrawPrep!D5)+1),"") -> 3. ΚΟΥΡΤΙΔΗΣ | R27: =Setup!B10 -> ΠΕΤΡΙΔΗΣ ΜΑΝΟΣ
J28: ="4. " & IF(Setup!B19>3,LEFT(DrawPrep!D6,FIND(" ",DrawPrep!D6)+1),"") -> 4. ΠΑΣΧΑΛΙΔΗΣ Μ
J40: BoldPlayers
J41: =IF(Setup!$B$19>0,LEFT(DrawPrep!D3,FIND(" ",DrawPrep!D3)-1)) -> ΠΟΥΛΑΚΗΣ
J42: =IF(Setup!$B$19>1,LEFT(DrawPrep!D4,FIND(" ",DrawPrep!D4)-1)) -> ΠΑΠΟΥΛΙΑΣ
J43: =IF(Setup!$B$19>2,LEFT(DrawPrep!D5,FIND(" ",DrawPrep!D5)-1)) -> ΚΟΥΡΤΙΔΗΣ
J44: =IF(Setup!$B$19>3,LEFT(DrawPrep!D6,FIND(" ",DrawPrep!D6)-1)) -> ΠΑΣΧΑΛΙΔΗΣ
